{"text_format":"1","workbook":"xlsx","n_sheets":3,"sheets":["Prompt","Cedula3BS","Enviar"],"not_rendered":{"charts":0,"images":4,"macros":1,"external_links":0,"defined_names":0,"comments":1,"pivot_tables":0},"unopened":[],"bounds":{"document_bytes":16777216,"sheet_cells":100000,"rows_first":2000,"rows_last":500,"rows_between":2000,"halvings":0,"cell_chars":16384,"cell_head_chars":4096},"cells_cut":0,"cells_raw":0,"read":"whole","date_system":"1900"}

{"sheet":"Prompt","index":0,"n_rows":38,"n_cols":4,"rows_kept":38,"cut":false,"hidden":false,"merged":[[0,3,1,5],[3,1,5,8],[8,1,9,8],[37,1,38,8]]}
[null,null,null,"¡ATENCIÓN!"]
[]
[]
[null,"Para hacer uso de las funcionalidades de esta Cédula Electrónica debe habilitar macros"]
[]
[]
[]
[]
[null,"Si utiliza Excel 2000, 2002, 2003 siga el siguiente procedimiento:"]
[]
[]
[]
[]
[]
[]
[]
[]
[]
[]
[]
[]
[]
[]
[]
[]
[]
[]
[]
[]
[]
[]
[]
[]
[]
[]
[]
[]
[null,"Si utiliza Excel 2007 siga el siguiente procedimiento:"]

{"sheet":"Cedula3BS","index":1,"n_rows":150,"n_cols":19,"rows_kept":150,"cut":false,"hidden":true,"merged":[[4,2,4,3],[58,9,58,10],[58,11,58,12],[57,7,58,8],[35,7,36,8],[57,2,59,6],[14,5,14,17],[12,5,12,6],[36,11,36,12],[12,16,12,17],[35,2,37,6],[16,16,16,17],[16,5,16,13],[27,16,27,17],[28,8,28,9],[29,16,29,17],[105,11,105,15],[104,8,104,10],[106,16,106,18],[36,9,36,10],[0,16,0,18],[1,5,1,14],[2,5,2,14],[3,5,3,14],[1,16,3,18],[83,15,83,16],[83,17,83,18],[49,2,49,18],[36,13,36,14],[36,17,36,18],[36,15,36,16],[106,11,106,15],[105,8,105,10],[105,16,105,18],[48,2,48,18],[58,13,58,14],[71,7,72,8],[72,17,72,18],[72,13,72,14],[72,15,72,16],[68,4,68,6],[103,16,103,18],[104,16,104,18],[72,9,72,10],[72,11,72,12],[58,15,58,16],[58,17,58,18],[104,11,104,15],[82,7,83,8],[83,9,83,10],[83,11,83,12],[83,13,83,14],[103,11,103,15],[103,4,103,6],[103,8,103,10],[71,2,73,6],[106,2,106,7],[104,2,104,7],[105,2,105,7],[82,2,84,6],[106,8,106,10]]}
[null,null,null,null,null,null,null,null,null,null,null,null,null,null,null,null,"CÉDULA"]
[null,null,null,null,null,"CENSO EDUCATIVO 2022",null,null,null,null,null,null,null,null,null,null,"3BS"]
[null,null,null,null,null,"EDUCACIÓN BÁSICA REGULAR"]
[null,null,null,null,null,"SECUNDARIA"]
[null,null,"Versión :",null,2]
[null,null,"INSTRUCCIONES DEL FORMATO ELECTRÓNICO "]
[]
[]
[]
[null,null,"IDENTIFICACIÓN DEL SERVICIO EDUCATIVO"]
[]
[]
[null,null,"1.  CÓDIGO MODULAR :",null,null,null,null,null,null,"NÚMERO DE ANEXO : ",0,null,null,null,null,"2. CÓDIGO DE LOCAL EDUCATIVO : "]
[]
[null,null,"3.  NOMBRE DEL SERVICIO :"]
[]
[null,null,"4. DISTRITO :",null,null,null,null,null,null,null,null,null,null,null,null,"GESTIÓN :   ",null,null,{"$f":"IF(Q17=\"2: Privada\",\"X\",\"\")","v":""}]
[]
[]
[null,null,"COSTOS POR PANDEMIA 2020 (SOLO GESTIÓN PRIVADA)"]
[null,null,"6.   DURANTE EL AÑO 2020, ¿EL SERVICIO EDUCATIVO REDUJO"]
[null,null,null,"EL COSTO DE LA PENSIÓN ESCOLAR POR LA PANDEMIA?",null,null,null,null,null,null,"Si   ",null,null,"No   ",null,"Pase a la SECCIÓN 100."]
[]
[null,null,"7.   INDIQUE EL COSTO DE LA NUEVA PENSIÓN ESCOLAR (COSTO MENSUAL Y EN MONEDA NACIONAL)"]
[null,null,null,"QUE COBRÓ EN 2020 DEBIDO A LA PANDEMIA, SEGÚN ESCALA."]
[]
[null,null,null,null,"Escala",null,null,"Única",null,null,null,null,"Varias"]
[null,null,null,null,null,null,null,null,null,null,null,null,null,null,null,"Escala mínima  "]
[null,null,null,null,null,null,null,"Pensión"]
[null,null,null,null,null,null,null,null,null,null,null,null,null,null,null,"Escala máxima  "]
[]
[]
[null,null,"100. RESULTADO DEL EJERCICIO EDUCATIVO"]
[null,null,"Complete y remita esta sección entre diciembre del año 2022 y enero del año 2023."]
[null,null,"101 - RESULTADO DEL EJERCICIO EDUCATIVO A DICIEMBRE DE 2022, POR GRADO DE ESTUDIO Y SEXO"]
[null,null,"SITUACIÓN",null,null,null,null,"TOTAL",null,"GRADO DE ESTUDIO Y SEXO"]
[null,null,null,null,null,null,null,null,null,"1º",null,"2º",null,"3º",null,"4º",null,"5º"]
[null,null,null,null,null,null,null,"H","M","H","M","H","M","H","M","H","M","H","M"]
["00",null,"TOTAL MATRÍCULA",null,null,null,null,{"$f":"SUM(H41:H47)+H40","v":0},0,0,0,0,0,0,0,0,0,0,0]
["01",null,"Promovidos de grado",null,null,null,"1/",{"$f":"SUM(J40,L40,N40,P40,R40)","v":0},0]
["02",null,"Requiere recuperación pedagógica",null,null,null,"2/",{"$f":"SUM(J41,L41,N41,P41,R41)","v":0},{"$f":"SUM(K41,M41,O41,Q41,S41)","v":0}]
["03",null,"Promoción guiada",null,null,null,"3/",0,0]
["04",null,"Sin situación final",null,null,null,"4/",0,0]
["05",null,"Trasladados a otras II.EE",null,null,null,"5/",0,0]
["06",null,"Postergación de evaluación",null,null,null,"6/",0,0]
["07",null,"Retirados",null,null,null,"7/",0,0]
["08",null,"Fallecidos",null,null,null,null,0,0]
[null,null,"1/ Promovidos de grado: Estudiantes que al término del ejercicio educatívo 2022 fueron considerados aptos para ser promovidos."]
[null,null,"2/ Requiere recuperación pedagógica: Estudiantes que cuentan con cursos a cargo (desaprobados) de periodos lectivos anteriores y que no ha logrado subsanarlos hasta diciembre 2022."]
[null,null,"3/ Promoción guiada: Estudiantes que serán promovidos de grado, pero que debido a la emergencia sanitaria, no alcanzaron todas las competencias necesarias en el año 2022, y deberán hacerlo durante el año 2023."]
[null,null,"4/ Sin situación final: Estudiantes que no fueron evaluados o no cuentan con calificaciones en todas las competencias. "]
[null,null,"5/ Trasladados a otras II.EE. : Estudiantes que se van a otra I.E. dentro o fuera de la localidad entre abril y octubre de 2022."]
[null,null,"6/ Postergación de Evaluación: Se da cuando el padre de familia solicita, con documentos probatorios, posponer la evaluación de un estudiante por"]
[null,null,"enfermedad, accidente, cambio de residencia al extranjero o viaje en delegación oficial."]
[null,null,"7/ Retirados: Estudiantes que durante el año académico 2022 dejaron de asistir por diversos motivos y no se encuentran aptos para la evaluación final."]
[null,null,"No incluir a los estudiantes trasladados a otra I.E."]
[null,null,"102 - RETIRADOS POR GRADO DE ESTUDIO Y SEXO, SEGÚN MOTIVO"]
[null,null,"MOTIVO",null,null,null,null,"TOTAL",null,"GRADO DE ESTUDIO Y SEXO"]
[null,null,null,null,null,null,null,null,null,"1º",null,"2º",null,"3º",null,"4º",null,"5º"]
[null,null,null,null,null,null,null,"H","M","H","M","H","M","H","M","H","M","H","M"]
["00",null,"TOTAL RETIRADOS",null,null,null,null,{"$f":"SUM(H62:H69)","v":0},0,0,0,0,0,0,0,0,0,0,0]
["01",null,"Situación económica",null,null,null,null,{"$f":"SUM(J62,L62,N62,P62,R62,T62)","v":0},0]
["02",null,"Violencia",null,null,null,null,0,0]
["03",null,"Enfermedad",null,null,null,null,0,0]
["04",null,"Trabajo infantil",null,null,null,null,0,0]
["05",null,"Apoyo en labores agrícolas",null,null,null,null,0,0]
["06",null,"Adicción",null,null,null,null,0,0]
["07",null,"Embarazo",null,null,null,null,{"$f":"SUM(J68,L68,N68,P68,R68,T68)","v":0},{"$f":"SUM(K68,M68,O68,Q68,S68,U68)","v":0}]
["08",null,"Otros",null,null,null,null,0,0]
[null,null,"Nota.- Los totales de esta tabla deben ser iguales a los reportados en el rubro “Retirados” de la tabla 101"]
[null,null,"103. FALLECIDOS POR GRADO DE ESTUDIO Y SEXO, SEGÚN MOTIVO"]
[null,null,"MOTIVO",null,null,null,null,"TOTAL",null,"GRADO DE ESTUDIO Y SEXO"]
[null,null,null,null,null,null,null,null,null,"1º",null,"2º",null,"3º",null,"4º",null,"5º"]
[null,null,null,null,null,null,null,"H","M","H","M","H","M","H","M","H","M","H","M"]
["00",null,"TOTAL FALLECIDOS",null,null,null,null,{"$f":"SUM(H76:H80)","v":0},0,0,0,0,0,0,0,0,0,0,0]
["01",null,"Enfermedad",null,null,null,null,{"$f":"SUM(J76,L76,N76,P76,R76,T76)","v":0},0]
["02",null,"Accidente",null,null,null,null,0,0]
["03",null,"Suicidio",null,null,null,null,0,0]
["04",null,"Ocasionada por violencia familiar",null,null,null,null,0,0]
["05",null,"Otros",null,null,null,null,0,0]
[null,null,"Nota: Los totales de esta tabla deben ser iguales a los reportados en el rubro “Fallecidos” de la tabla 101."]
[null,null,"104. MATRÍCULA TOTAL POR GRADO DE ESTUDIO Y SEXO, SEGÚN TIPO DE DISCAPACIDAD U OTRA CONDICIÓN"]
[null,null,"TIPO DE DISCAPACIDAD U OTRA CONDICIÓN",null,null,null,null,"TOTAL",null,"GRADO DE ESTUDIO Y SEXO"]
[null,null,null,null,null,null,null,null,null,"1º",null,"2º",null,"3º",null,"4º",null,"5º"]
[null,null,null,null,null,null,null,"H","M","H","M","H","M","H","M","H","M","H","M"]
["00",null,"TOTAL",null,null,null,null,{"$f":"SUM(H87:H100)","v":0},0,0,0,0,0,0,0,0,0,0,0]
["01",null,"Discapacidad Intelectual-Leve",null,null,null,null,{"$f":"SUM(J87,L87,N87,P87,R87)","v":0},{"$f":"SUM(K87,M87,O87,Q87,S87)","v":0}]
["02",null,"Discapacidad Intelectual-Moderada",null,null,null,null,{"$f":"SUM(J88,L88,N88,P88,R88)","v":0},{"$f":"SUM(K88,M88,O88,Q88,S88)","v":0}]
["03",null,"Discapacidad Intelectual-Severa",null,null,null,null,{"$f":"SUM(J89,L89,N89,P89,R89)","v":0},{"$f":"SUM(K89,M89,O89,Q89,S89)","v":0}]
["04",null,"Discapacidad Auditiva-Hipoacusia",null,null,null,null,0,0]
["05",null,"Discapacidad Auditiva-Sordera",null,null,null,null,0,0]
["06",null,"Discapacidad Visual-Baja visión",null,null,null,null,0,0]
["07",null,"Discapacidad Visual-Ceguera",null,null,null,null,0,0]
["08",null,"Discapacidad Física o Motora",null,null,null,null,0,0]
["09",null,"Trastorno del espectro Autista (TEA)",null,null,null,null,0,0]
["10",null,"Sordoceguera",null,null,null,null,0,0]
["11",null,"Multidiscapacidad",null,null,null,null,0,0]
["12",null,"Talento y Superdotación (altas capacidades)",null,null,null,null,0,0]
["13",null,"Otra discapacidad u otra condición",null,null,null,null,0,0]
["14",null,"Ninguna (No tiene discapacidad u otra condición)",null,null,null,null,{"$f":"SUM(J100,L100,N100,P100,R100)","v":0},{"$f":"SUM(K100,M100,O100,Q100,S100)","v":0}]
[null,null,"Nota 2: Los totales de esta tabla deben ser iguales a los de la tabla 101 por edad y sexo."]
[null,null,"DATOS DEL RESPONSABLE DEL LLENADO DE LA CÉDULA"]
[]
[null,null,null,null,null,null,null,null,"CARGO",null,null,"CORREO ELECTRÓNICO",null,null,null,null,"TELÉFONO"]
["1"]
["2"]
["3"]
[]
[]
[]
[]
["DIRECTOR(A)"]
["SUB DIRECTOR(A)"]
["DOCENTE"]
["COORDINADOR(A)"]
["ASESOR"]
["ADMINISTRATIVO"]
["ASISTENTE"]
["AUXILIAR"]
["SECRETARIA(O)"]
["ESTADÍSTICO"]
["ESPECIALISTA"]
["BIBLIOTECARIO"]
["CARE"]
["COMANDANTE PNP"]
["CONTADOR"]
["DAIP"]
["DIGITADOR(A)"]
["GERENTE"]
["JEFE ACADÉMICO"]
["JEFE ADMINISTRATIVO"]
["JEFE DE ÁREA"]
["JEFE DE LABORATORIO"]
["JEFE DE PERSONAL"]
["JEFE DE SEDE"]
["JEFE DE UNIDAD"]
["OFICINISTA"]
["OPERADOR DE SISTEMAS"]
["PERSONAL DE SERVICIO"]
["PROGRAMADOR"]
["PROMOTOR(A)"]
["PSICOLOGO"]
["REGISTRADOR(A)"]
["REPRESENTANTE LEGAL"]
["SOPORTE TECNOLOGICO"]
["TÉCNICO ADMINISTRATIVO"]
["TESORERO(A)"]
["TRABAJADOR SOCIAL"]
["TUTOR"]
["OTROS"]

{"sheet":"Enviar","index":2,"n_rows":9,"n_cols":3,"rows_kept":9,"cut":false,"hidden":true,"merged":[[0,0,0,3],[1,0,1,3]]}
["CENSO EDUCATIVO 2022"]
["RESULTADO DEL EJERCICIO EDUCATIVO"]
[]
[]
[null,"Paso 1:","Realice el ENVÍO con su clave EOL."]
[]
[null,"Paso 2:","Una vez realizado el ENVÍO,  Revise su constancia de envio."]
[]
[null,"  ADVERTENCIA","Asegúrese de registrar toda la información del nivel informante"]